bitfinex-derivatives/quotes_SOLF0:USTF0_20250216
["timestamp","ask_amount","ask_price","bid_price","bid_amount"]
[1739729278074,0.03643379,189.73,189.69,6.94931579]
[1739729278278,0.03643379,189.73,189.71,12.17963052]
[1739729278881,0.03643379,189.73,189.71,6.90923052]
[1739729279678,0.03643379,189.73,189.71,12.17963052]
[1739729280178,0.03643379,189.73,189.71,6.90923052]
[1739729280583,0.03643379,189.73,189.69,6.94931579]
[1739729281179,0.03643379,189.73,189.69,12.22011579]
[1739729281683,4.21,189.72,189.71,6.90923052]
[1739729284082,4.21,189.72,189.71,12.17963052]
[1739729285187,4.21,189.72,189.71,6.90923052]
[1739729286388,4.21,189.72,189.71,12.17963052]
[1739729286879,4.21,189.72,189.71,6.90923052]
[1739729287787,4.21,189.72,189.71,12.17963052]
[1739729288691,4.21,189.72,189.71,6.90923052]
[1739729289989,4.21,189.72,189.71,12.17963052]
[1739729290791,4.21,189.72,189.71,6.90923052]
[1739729292191,4.21,189.72,189.71,12.17963052]
[1739729292593,4.21,189.72,189.71,6.90923052]
[1739729293592,4.21,189.72,189.71,12.17963052]
[1739729293786,4.21,189.72,189.71,6.90923052]
[1739729296789,4.21,189.72,189.71,12.17963052]
[1739729297094,4.21,189.72,189.71,6.90923052]
[1739729298793,4.21,189.72,189.71,12.17963052]
[1739729298996,4.21,189.72,189.71,6.90923052]
[1739729301189,4.21,189.72,189.71,12.17963052]
[1739729301994,4.21,189.72,189.71,6.90923052]
[1739729302593,4.21,189.72,189.71,12.17963052]
[1739729304288,4.21,189.72,189.71,6.90923052]
[1739729311905,0.03643379,189.73,189.71,6.90923052]
[1739729312603,0.03643379,189.73,189.69,6.94931579]
[1739729313005,4.21,189.72,189.69,6.94931579]
[1739729315709,9.4802,189.72,189.69,6.94931579]
[1739729316702,4.21,189.72,189.69,6.94931579]
[1739729322809,4.21,189.72,189.71,6.90923052]
[1739729324714,4.21,189.72,189.71,12.17963052]
[1739729325706,4.21,189.72,189.71,6.90923052]
[1739729327819,4.21,189.72,189.69,6.94931579]
[1739729330617,4.21,189.72,189.69,12.22021579]
[1739729332219,4.21,189.72,189.69,6.94931579]
[1739729333118,4.21,189.72,189.69,12.22001579]
[1739729333513,4.21,189.72,189.69,6.94931579]
[1739729334019,4.21,189.72,189.71,6.90923052]
[1739729336114,4.21,189.72,189.69,6.94931579]
[1739729336315,4.21,189.72,189.69,0.04008527]
[1739729337122,9.4803,189.72,189.69,0.04008527]
[1739729338019,4.21,189.72,189.69,0.04008527]
[1739729338220,5.2704,189.71,189.69,0.04008527]
[1739729338526,4.21,189.72,189.69,0.04008527]
[1739729338727,9.4801,189.72,189.69,0.04008527]
[1739729339122,4.21,189.72,189.69,0.04008527]
[1739729340319,11.11923052,189.72,189.65,6.90923052]
[1739729340521,16.38943052,189.72,189.65,12.18103052]
[1739729341025,4.21,189.72,189.67,6.90923052]
[1739729341421,0.03593757,189.71,189.68,0.03686897]
[1739729343332,4.21,189.7,189.68,0.03686897]
[1739729348836,5.2709,189.69,189.68,0.03686897]
[1739729349035,4.21,189.7,189.68,0.03686897]
[1739729350739,9.4807,189.7,189.68,0.03686897]
[1739729353038,5.2709,189.69,189.68,0.03686897]
[1739729356540,11.11923052,189.7,189.68,0.03686897]
[1739729356740,16.39003052,189.7,189.68,0.03686897]
[1739729357435,11.11923052,189.7,189.68,0.03686897]
[1739729360646,16.38993052,189.7,189.68,0.03686897]
[1739729361044,11.11923052,189.7,189.68,0.03686897]
[1739729366143,16.39013052,189.7,189.68,0.03686897]
[1739729368650,5.2709,189.69,189.68,0.03686897]
[1739729369150,11.11923052,189.7,189.68,0.03686897]
[1739729369355,16.39013052,189.7,189.68,0.03686897]
[1739729370453,11.11923052,189.7,189.68,0.03686897]
[1739729371157,16.39003052,189.7,189.68,0.03686897]
[1739729372855,5.2709,189.69,189.68,0.03686897]
[1739729373560,4.21,189.7,189.68,0.03686897]
[1739729375059,9.4807,189.7,189.68,0.03686897]
[1739729375560,4.21,189.7,189.68,0.03686897]
[1739729376361,9.4809,189.7,189.68,0.03686897]
[1739729376861,4.21,189.7,189.68,0.03686897]
[1739729378462,9.4809,189.7,189.68,0.03686897]
[1739729378662,4.21,189.7,189.65,6.90923052]
[1739729378960,4.21,189.7,189.63,6.90923052]
[1739729379162,6.90923052,189.72,189.64,5.2723]
[1739729379861,0.03452249,189.7,189.66,0.03980709]
[1739729380062,5.2712,189.69,189.66,0.03980709]
[1739729380253,4.21,189.69,189.66,0.03980709]
[1739729382454,12.18053052,189.68,189.66,0.03980709]
[1739729382654,12.18053052,189.68,189.58,97.07020465]
[1739729382655,6.90923052,189.68,189.58,97.07020465]
[1739729382859,6.90923052,189.63,189.58,97.07020465]
[1739729383063,6.90923052,189.63,189.59,5.2737]
[1739729383264,6.90923052,189.63,189.58,97.07020465]
[1739729383660,6.90923052,189.61,189.57,21.84953638]
[1739729383866,6.90923052,189.59,189.58,0.03651062]
[1739729386168,12.18293052,189.59,189.58,0.03651062]
[1739729386665,6.90923052,189.59,189.58,0.03651062]
[1739729387763,6.90923052,189.61,189.58,0.03651062]
[1739729388067,0.03448861,189.62,189.58,0.03651062]
[1739729388367,6.90923052,189.61,189.58,0.03651062]
[1739729390763,0.03448861,189.62,189.58,5.31051062]
[1739729391164,0.03448861,189.62,189.59,6.90923052]
[1739729391957,4.21,189.69,189.58,0.03651062]
[1739729391958,11.11923052,189.69,189.61,6.90923052]
[1739729392158,11.11923052,189.69,189.45,11.0442]
[1739729392159,11.11923052,189.69,189.62,6.90923052]
[1739729393169,0.0401745,189.67,189.64,0.03543868]
[1739729393771,5.3117745,189.67,189.64,0.03543868]
[1739729395973,0.0401745,189.67,189.64,6.9446692]
[1739729396275,4.21,189.69,189.66,6.90923052]
[1739729396473,4.21,189.69,189.68,6.90923052]
[1739729397968,4.21,189.69,189.68,12.18043052]
[1739729401276,0.0393834,189.7,189.68,6.90923052]
[1739729402479,4.2493834,189.7,189.68,6.90923052]
[1739729404381,4.2493834,189.7,189.69,5.2709]
[1739729404980,4.7965,189.82,189.73,5.2697]
[1739729405191,4.7965,189.82,189.77,6.90923052]
[1739729405689,5.2681,189.8,189.77,6.90923052]
[1739729406184,1.56045519,189.8,189.77,6.94481397]
[1739729406488,5.2682,189.79,189.77,6.94481397]
[1739729406689,1.56045519,189.8,189.77,0.03558345]
[1739729406988,5.269,189.76,189.73,6.90923052]
[1739729408082,5.2694,189.75,189.73,6.94782418]
[1739729409085,5.2696,189.74,189.73,0.03859366]
[1739729409787,0.03536215,189.76,189.73,0.03859366]
[1739729410292,0.03536215,189.76,189.73,6.94782418]
[1739729411193,0.03536215,189.76,189.73,0.03859366]
[1739729411394,6.90923052,189.75,189.73,0.03859366]
[1739729411588,5.2696,189.74,189.73,0.03859366]
[1739729412488,5.2693,189.75,189.73,0.03859366]
[1739729412690,0.03536215,189.76,189.73,6.94782418]
[1739729413487,0.03536215,189.76,189.73,12.21762418]
[1739729413692,0.03536215,189.76,189.75,6.90923052]
[1739729414087,0.03536215,189.76,189.75,12.17853052]
[1739729414292,0.03536215,189.76,189.75,6.90923052]
[1739729418496,0.03536215,189.76,189.73,6.94782418]
[1739729418892,5.30456215,189.76,189.73,6.94782418]
[1739729419097,0.03536215,189.76,189.73,0.03859366]
[1739729419496,5.2696,189.74,189.73,0.03859366]
[1739729419902,5.2702,189.72,189.69,6.90923052]
[1739729420098,8.45633052,189.75,189.67,6.90923052]
[1739729421201,5.2702,189.72,189.69,0.03457538]
[1739729422105,5.2704,189.71,189.69,0.03457538]
[1739729422606,5.2707,189.7,189.69,0.03457538]
[1739729424202,5.2712,189.68,189.65,6.90923052]
[1739729424603,6.90923052,189.71,189.63,6.90923052]
[1739729424906,5.2716,189.67,189.63,6.90923052]
[1739729425202,5.2719,189.66,189.65,0.03773561]
[1739729426002,5.2719,189.66,189.61,6.90923052]
[1739729426207,5.2721,189.65,189.61,6.90923052]
[1739729426409,6.90923052,189.67,189.61,6.90923052]
[1739729426707,6.90923052,189.67,189.59,6.90923052]
[1739729426908,5.2726,189.64,189.59,6.90923052]
[1739729427308,0.03670954,189.63,189.59,6.90923052]
[1739729429009,5.273,189.62,189.59,6.90923052]
[1739729430413,5.30940954,189.63,189.59,6.90923052]
[1739729431313,1.54,189.62,189.59,6.90923052]
[1739729433216,1.54,189.62,189.57,6.90923052]
[1739729434916,6.8129,189.62,189.57,6.90923052]
[1739729435417,5.2734,189.61,189.57,6.90923052]
[1739729435619,1.54,189.62,189.57,6.90923052]
[1739729437720,1.54,189.62,189.57,12.18333052]
[1739729437917,1.54,189.62,189.59,6.90923052]
[1739729438718,6.813,189.62,189.59,6.90923052]
[1739729438919,1.54,189.62,189.59,6.90923052]
[1739729439723,5.2734,189.61,189.57,6.90923052]
[1739729440316,5.2737,189.59,189.55,6.90923052]
[1739729440518,1.54,189.62,189.55,6.90923052]
[1739729440724,5.274,189.58,189.55,6.90923052]
[1739729442620,0.03650237,189.6,189.55,6.90923052]
[1739729442826,5.2746,189.56,189.53,6.90923052]
[1739729443020,5.2746,189.56,189.51,6.90923052]
[1739729443526,0.03477152,189.55,189.51,6.90923052]
[1739729443927,0.03477152,189.55,189.53,6.90923052]
[1739729444322,5.30987152,189.55,189.51,6.90923052]
[1739729444625,6.94400204,189.55,189.49,6.90923052]
[1739729445128,5.2752,189.54,189.49,6.90923052]
[1739729445718,6.94400204,189.55,189.49,6.90923052]
[1739729445923,5.30967152,189.55,189.49,6.90923052]
[1739729446719,5.2751,189.54,189.49,6.90923052]
[1739729447122,0.03477152,189.55,189.49,6.90923052]
[1739729448222,0.03477152,189.55,189.51,6.90923052]
[1739729448926,5.2752,189.54,189.51,6.90923052]
[1739729449629,1.55,189.53,189.51,6.90923052]
[1739729450428,1.55,189.53,189.49,12.18563052]
[1739729450929,1.58632889,189.53,189.49,12.18563052]
[1739729451122,1.58632889,189.53,189.49,6.90923052]
[1739729451629,6.86182889,189.53,189.49,6.90923052]
[1739729451929,1.58632889,189.53,189.49,12.18563052]
[1739729452321,1.58632889,189.53,189.51,6.90923052]
[1739729455226,1.58632889,189.53,189.51,12.18503052]
[1739729456027,1.58632889,189.53,189.51,6.90923052]
[1739729456931,1.58632889,189.53,189.51,12.18503052]
[1739729457327,1.58632889,189.53,189.51,6.90923052]
[1739729458033,1.58632889,189.53,189.51,12.18493052]
[1739729459530,1.58632889,189.53,189.51,6.90923052]
[1739729460436,1.58632889,189.53,189.51,12.18503052]
[1739729460630,1.58632889,189.53,189.51,6.90923052]
[1739729460835,1.58632889,189.53,189.52,5.2757]
[1739729461437,1.43592889,189.53,189.52,5.2757]
[1739729463138,1.43592889,189.53,189.51,6.90923052]
[1739729463941,1.43592889,189.53,189.52,5.2757]
[1739729465037,1.43592889,189.53,189.51,6.90923052]
[1739729465242,1.43592889,189.53,189.51,12.18513052]
[1739729465438,1.43592889,189.53,189.51,6.90923052]
[1739729468043,1.43592889,189.53,189.49,6.90923052]
[1739729468945,5.2757,189.52,189.49,6.90923052]
[1739729469348,1.43592889,189.53,189.49,6.90923052]
[1739729469545,5.276,189.51,189.49,6.90923052]
[1739729471043,6.71152889,189.53,189.49,6.90923052]
[1739729471446,1.43592889,189.53,189.49,6.90923052]
[1739729471642,5.2757,189.52,189.49,6.90923052]
[1739729471844,5.2757,189.52,189.47,6.90923052]
[1739729472043,1.43592889,189.53,189.47,6.90923052]
[1739729472246,5.2763,189.5,189.45,6.90923052]
[1739729472547,8.34515941,189.53,189.47,6.90923052]
[1739729472748,5.2757,189.52,189.47,6.90923052]
[1739729473042,5.31136349,189.52,189.47,6.90923052]
[1739729473447,0.03566349,189.52,189.47,6.90923052]
[1739729473644,0.03566349,189.52,189.47,12.18613052]
[1739729474250,0.03566349,189.52,189.47,6.90923052]
[1739729474546,0.03566349,189.52,189.47,12.18603052]
[1739729474946,5.31136349,189.52,189.47,12.18603052]
[1739729475750,0.03566349,189.52,189.47,6.90923052]
[1739729475945,0.03566349,189.52,189.48,5.2767]
[1739729476249,0.03566349,189.52,189.47,6.90923052]
[1739729476548,5.31136349,189.52,189.47,12.18603052]
[1739729476744,0.03566349,189.52,189.47,6.90923052]
[1739729476948,5.276,189.51,189.47,6.90923052]
[1739729478048,1.42,189.5,189.47,12.18613052]
[1739729478451,1.42,189.5,189.47,6.90923052]
[1739729479952,1.42,189.5,189.47,12.18633052]
[1739729480251,1.42,189.5,189.47,6.90923052]
[1739729480954,1.42,189.5,189.47,12.18623052]
[1739729481354,1.42,189.5,189.47,6.90923052]
[1739729483954,1.42,189.5,189.47,12.18633052]
[1739729484755,1.42,189.5,189.47,6.90923052]
[1739729486156,1.42,189.5,189.47,12.18633052]
[1739729486349,1.42,189.5,189.47,6.90923052]
[1739729486546,1.42,189.5,189.45,6.90923052]
[1739729487059,5.31711485,189.49,189.45,6.90923052]
[1739729488357,0.04041485,189.49,189.45,6.90923052]
[1739729488559,5.2768,189.48,189.45,6.90923052]
[1739729489455,5.31701485,189.49,189.45,6.90923052]
[1739729489655,0.04041485,189.49,189.45,6.90923052]
[1739729490361,5.277,189.48,189.45,6.90923052]
[1739729490761,0.04041485,189.49,189.47,6.90923052]
[1739729491663,0.04041485,189.49,189.47,12.18623052]
[1739729492762,0.04041485,189.49,189.47,6.90923052]
[1739729493066,0.04041485,189.49,189.45,12.18663052]
[1739729493871,0.04041485,189.49,189.45,6.90923052]
[1739729494167,0.04041485,189.49,189.47,12.18613052]
[1739729494670,0.04041485,189.49,189.47,6.90923052]
[1739729495069,0.04041485,189.49,189.45,6.90923052]
[1739729495870,5.2768,189.48,189.45,6.90923052]
[1739729496170,0.04041485,189.49,189.45,6.90923052]
[1739729496669,5.31711485,189.49,189.45,6.90923052]
[1739729496869,0.04041485,189.49,189.45,6.90923052]
[1739729497069,0.04041485,189.49,189.39,0.20346]
[1739729497070,0.04041485,189.49,189.43,6.90923052]
[1739729498271,6.94964537,189.49,189.43,6.90923052]
[1739729498472,6.90923052,189.45,189.39,7.11269052]
[1739729498969,0.03699974,189.44,189.39,7.11269052]
[1739729499371,0.03699974,189.44,189.39,0.20346]
[1739729500276,6.90923052,189.41,189.39,0.20346]
[1739729500773,6.90923052,189.43,189.39,0.20346]
[1739729501375,6.90923052,189.41,189.39,0.20346]
[1739729501972,12.18803052,189.41,189.39,0.20346]
[1739729502173,12.18803052,189.41,189.35,6.90923052]
[1739729502580,0.03736925,189.4,189.35,6.90923052]
[1739729502769,0.03736925,189.4,189.35,12.18943052]
[1739729503078,0.03736925,189.4,189.35,6.90923052]
[1739729503277,5.31636925,189.4,189.35,6.90923052]
[1739729504081,1.43,189.39,189.35,6.90923052]
[1739729506176,1.43,189.39,189.37,6.90923052]
[1739729508981,1.43,189.39,189.37,12.18903052]
[1739729509282,1.43,189.39,189.37,6.90923052]
[1739729509680,1.43,189.39,189.38,5.2796]
[1739729510281,1.2241,189.39,189.38,5.2796]
[1739729511279,0.03848796,189.4,189.37,6.90923052]
[1739729511579,1.5924,189.47,189.39,6.90923052]
[1739729511779,1.5924,189.47,189.42,6.90923052]
[1739729512877,0.03540428,189.46,189.43,0.03764034]
[1739729514171,5.31280428,189.46,189.43,0.03764034]
[1739729514382,0.03540428,189.46,189.43,0.03764034]
[1739729515482,5.2776,189.45,189.43,0.03764034]
[1739729515783,0.03540428,189.46,189.43,0.03764034]
[1739729515983,5.2777,189.45,189.43,0.03764034]
[1739729518778,6.90923052,189.45,189.35,6.90923052]
[1739729518983,6.90923052,189.41,189.35,6.90923052]
[1739729520081,0.03751636,189.4,189.35,6.90923052]
[1739729520583,0.03751636,189.4,189.37,6.90923052]
[1739729520776,6.90923052,189.43,189.37,6.90923052]
[1739729520980,0.03574944,189.4,189.37,6.90923052]
[1739729521176,0.03574944,189.4,189.39,6.90923052]
[1739729521487,6.90923052,189.45,189.39,6.90923052]
[1739729521682,0.03690317,189.41,189.39,6.90923052]
[1739729521988,0.03690317,189.41,189.39,12.18833052]
[1739729522783,0.03690317,189.41,189.39,6.90923052]
[1739729522981,1.5924,189.47,189.39,6.90923052]
[1739729523186,67.14794304,189.48,189.45,6.90923052]
[1739729523785,5.2771,189.47,189.45,6.90923052]
[1739729524186,5.2771,189.47,189.44,0.03549486]
[1739729524383,67.14794304,189.48,189.43,6.90923052]
[1739729524584,0.03683414,189.47,189.44,0.03860102]
[1739729525286,5.2776,189.46,189.44,0.03860102]
[1739729525688,5.31393414,189.47,189.44,0.03860102]
[1739729525887,0.03683414,189.47,189.44,0.03860102]
[1739729527394,0.03683414,189.47,189.45,6.90923052]
[1739729527785,0.03683414,189.47,189.46,5.2773]
[1739729527986,67.14794304,189.48,189.46,5.2773]
[1739729528185,67.14794304,189.48,189.47,6.90923052]
[1739729530589,67.14794304,189.48,189.45,1.6602]
[1739729530789,67.14794304,189.48,189.45,6.90923052]
[1739729531188,72.42474304,189.48,189.45,6.90923052]
[1739729531488,67.14794304,189.48,189.44,0.03860102]
[1739729533794,5.2773,189.47,189.44,0.03860102]
[1739729535491,5.2772,189.47,189.44,0.03860102]
[1739729539900,5.2773,189.47,189.44,0.03860102]
[1739729543297,0.0391421,189.49,189.44,0.03860102]
[1739729543804,0.0391421,189.49,189.45,5.2774]
[1739729544197,0.0391421,189.49,189.44,0.03860102]
[1739729544401,5.3156421,189.49,189.44,5.31640102]
[1739729544805,5.3156421,189.49,189.44,0.03860102]
[1739729544806,0.0391421,189.49,189.44,0.03860102]
[1739729545100,5.3156421,189.49,189.44,0.03860102]
[1739729545296,0.0391421,189.49,189.44,0.03860102]
[1739729546200,5.2772,189.47,189.44,0.03860102]
[1739729547202,5.3158421,189.49,189.44,0.03860102]
[1739729547705,0.0391421,189.49,189.44,0.03860102]
[1739729547906,5.277,189.48,189.44,0.03860102]
[1739729549707,0.0391421,189.49,189.44,0.03860102]
[1739729549908,5.2771,189.47,189.44,0.03860102]
[1739729553315,5.2773,189.46,189.44,0.03860102]
[1739729554415,0.0391421,189.49,189.44,0.03860102]
[1739729554717,5.2776,189.45,189.44,0.03860102]
[1739729559718,5.2773,189.47,189.44,0.03860102]
[1739729560018,0.0391421,189.49,189.45,6.93229257]
[1739729560220,0.0391421,189.49,189.47,6.93229257]
[1739729560522,5.3157421,189.49,189.47,6.93229257]
[1739729560711,0.0391421,189.49,189.47,6.93229257]
[1739729568417,5.2768,189.48,189.47,6.93229257]
[1739729568823,0.0391421,189.49,189.47,6.93229257]
[1739729569024,5.3157421,189.49,189.47,6.93229257]
[1739729569223,0.0391421,189.49,189.47,6.93229257]
[1739729569426,5.3157421,189.49,189.47,6.93229257]
[1739729569628,0.0391421,189.49,189.47,6.93229257]
[1739729570230,5.2768,189.48,189.47,6.93229257]
[1739729571125,0.0391421,189.49,189.44,0.03860102]
[1739729571428,1.5971,189.47,189.44,0.03860102]
[1739729572123,0.0391421,189.49,189.45,6.93229257]
[1739729572825,5.2768,189.48,189.45,6.93229257]
[1739729573228,0.0391421,189.49,189.45,6.93229257]
[1739729573424,5.277,189.48,189.45,6.93229257]
[1739729573628,0.0391421,189.49,189.44,0.03860102]
[1739729574025,5.2773,189.47,189.44,0.03860102]
[1739729575431,6.93229257,189.48,189.44,0.03860102]
[1739729575632,5.2776,189.45,189.44,0.03860102]
[1739729576230,5.2787,189.42,189.39,6.93229257]
[1739729576637,8.55959257,189.44,189.37,6.93229257]
[1739729577330,5.2796,189.38,189.35,6.93229257]
[1739729577525,6.93229257,189.4,189.39,0.03863264]
[1739729577733,5.2792,189.4,189.35,6.93229257]
[1739729577934,5.2792,189.4,189.38,0.0351976]
[1739729581338,5.2793,189.39,189.38,0.0351976]
[1739729585529,5.2793,189.39,189.35,6.93229257]
[1739729585530,5.2801,189.36,189.33,6.93229257]
[1739729585928,6.93229257,189.4,189.33,6.93229257]
[1739729586436,6.93229257,189.42,189.35,6.93229257]
[1739729586745,0.0342174,189.38,189.35,6.93229257]
[1739729588543,5.3140174,189.38,189.35,6.93229257]
[1739729588744,0.0342174,189.38,189.35,6.93229257]
[1739729589240,0.0342174,189.38,189.37,6.93229257]
[1739729595344,0.0342174,189.38,189.37,12.21209257]
[1739729595546,1.6273,189.44,189.37,6.93229257]
[1739729595744,6.93229257,189.48,189.41,6.93229257]
[1739729596140,5.2774,189.46,189.41,6.93229257]
[1739729596848,0.03399151,189.45,189.43,6.93229257]
[1739729601050,0.03399151,189.45,189.43,12.21019257]
[1739729601549,0.03399151,189.45,189.43,6.93229257]
[1739729602255,0.03399151,189.45,189.43,12.21049257]
[1739729604347,0.03399151,189.45,189.43,6.93229257]
[1739729605552,0.03399151,189.45,189.43,12.21049257]
[1739729605749,0.03399151,189.45,189.43,6.93229257]
[1739729606748,0.03399151,189.45,189.43,12.21039257]
[1739729606949,0.03399151,189.45,189.43,6.93229257]
[1739729607259,1.5495,189.54,189.43,6.93229257]
[1739729607448,1.5495,189.54,189.49,6.93229257]
[1739729607449,5.2754,189.53,189.49,6.93229257]
[1739729607648,8.48179257,189.54,189.49,6.93229257]
[1739729607849,8.48179257,189.54,189.47,6.93229257]
[1739729608050,5.2762,189.51,189.47,6.93229257]
[1739729608357,0.04008943,189.51,189.47,6.970091]
[1739729609848,5.31608943,189.51,189.47,6.970091]
[1739729610053,0.04008943,189.51,189.47,6.970091]
[1739729610457,5.31608943,189.51,189.47,6.970091]
[1739729610755,0.04008943,189.51,189.47,6.970091]
[1739729613454,0.04008943,189.51,189.47,12.247091]
[1739729613760,0.04008943,189.51,189.49,6.93229257]
[1739729613954,0.04008943,189.51,189.5,5.2762]
[1739729614454,0.04008943,189.51,189.49,6.93229257]
[1739729614659,0.04008943,189.51,189.49,12.20879257]
[1739729615155,0.04008943,189.51,189.49,6.93229257]
[1739729623062,0.04008943,189.51,189.5,5.2762]
[1739729625063,0.04008943,189.51,189.49,12.20869257]
[1739729625269,0.04008943,189.51,189.49,6.93229257]
[1739729629672,0.04008943,189.51,189.49,12.20859257]
[1739729630172,0.04008943,189.51,189.49,6.93229257]
[1739729632273,0.04008943,189.51,189.49,12.20859257]
[1739729633274,0.04008943,189.51,189.49,6.93229257]
[1739729634483,0.04008943,189.51,189.49,12.20869257]
[1739729635281,0.04008943,189.51,189.49,6.93229257]
[1739729637379,0.04008943,189.51,189.49,12.20879257]
[1739729638883,0.04008943,189.51,189.5,5.2762]
[1739729639784,5.2742,189.58,189.49,6.93229257]
[1739729639986,1.6892,189.6,189.55,6.93229257]
[1739729640285,5.2742,189.58,189.55,6.93229257]
[1739729641088,0.03887653,189.58,189.55,6.96762068]
[1739729642382,5.31307653,189.58,189.55,6.96762068]
[1739729642782,0.03887653,189.58,189.55,6.96762068]
[1739729642983,5.2743,189.57,189.55,6.96762068]
[1739729643787,5.2746,189.56,189.55,0.03532811]
[1739729649588,5.2745,189.57,189.55,6.96762068]
[1739729650793,5.2746,189.56,189.55,0.03532811]
[1739729650988,0.03887653,189.58,189.53,6.93229257]
[1739729651492,5.2751,189.54,189.53,6.93229257]
[1739729651795,5.2749,189.55,189.53,6.93229257]
[1739729651994,0.03887653,189.58,189.53,6.93229257]
[1739729653495,5.2751,189.55,189.53,6.93229257]
[1739729653794,0.03887653,189.58,189.53,6.93229257]
[1739729655191,5.2751,189.54,189.53,6.93229257]
[1739729656094,5.2751,189.55,189.53,6.93229257]
[1739729657097,0.03887653,189.58,189.53,6.93229257]
[1739729658298,5.2751,189.54,189.53,6.93229257]
[1739729659899,5.2749,189.55,189.53,6.93229257]
[1739729660097,0.03887653,189.58,189.53,6.93229257]
[1739729662001,5.2751,189.54,189.53,6.93229257]
[1739729663201,0.03887653,189.58,189.53,6.93229257]
[1739729663401,5.275,189.55,189.53,6.93229257]
[1739729663601,0.03887653,189.58,189.53,6.93229257]
[1739729664702,5.2751,189.55,189.53,6.93229257]
[1739729669404,0.03887653,189.58,189.53,6.93229257]
[1739729670007,5.275,189.55,189.53,6.93229257]
[1739729670208,0.03887653,189.58,189.53,6.93229257]
[1739729670502,5.2745,189.57,189.55,6.93229257]
[1739729670806,0.03887653,189.58,189.55,6.93229257]
[1739729671108,0.03887653,189.58,189.57,6.93229257]
[1739729672210,0.03887653,189.58,189.57,12.20659257]
[1739729673213,0.03887653,189.58,189.57,6.93229257]
[1739729687217,0.03887653,189.58,189.57,12.20659257]
[1739729688920,0.03887653,189.58,189.57,6.93229257]
[1739729689717,0.03887653,189.58,189.57,12.20659257]
[1739729695515,88.48036576,189.65,189.59,5.2735]
[1739729695815,88.48036576,189.65,189.62,6.93229257]
[1739729696016,5.2721,189.65,189.62,6.93229257]
[1739729696221,3.1564,189.66,189.62,6.93229257]
[1739729696522,1.6098,189.66,189.64,6.93229257]
[1739729696722,1.64674617,189.66,189.64,6.93229257]
[1739729697322,0.03694617,189.66,189.64,6.93229257]
[1739729701528,1.5473,189.71,189.64,6.93229257]
[1739729701726,1.5473,189.71,189.62,0.03945684]
[1739729701727,1.6842,189.74,189.7,6.93229257]
[1739729702223,5.27,189.73,189.7,6.93229257]
[1739729702427,1.6842,189.74,189.7,6.93229257]
[1739729702628,0.03559284,189.73,189.7,6.96681962]
[1739729703023,0.03559284,189.73,189.7,0.03452705]
[1739729703225,6.93229257,189.72,189.66,6.93229257]
[1739729703426,8.53419257,189.72,189.64,6.93229257]
[1739729703825,6.93229257,189.7,189.64,6.93229257]
[1739729704324,0.04015951,189.69,189.65,0.03507157]
[1739729704526,6.93229257,189.68,189.62,6.93229257]
[1739729704726,6.93229257,189.68,189.55,1.6886]
[1739729704727,8.54579257,189.68,189.6,6.93229257]
[1739729704931,5.2727,189.63,189.6,6.93229257]
[1739729705722,5.30770977,189.63,189.6,6.96658598]
[1739729705927,0.03500977,189.63,189.62,6.93229257]
[1739729706930,1.6019,189.72,189.62,6.93229257]
[1739729707235,1.6019,189.72,189.69,6.93229257]
[1739729707426,1.6135,189.75,189.71,6.93229257]
[1739729708127,5.2696,189.74,189.71,6.97013962]
[1739729708631,1.64798103,189.75,189.71,6.97013962]
[1739729708829,1.64798103,189.75,189.73,6.93229257]
[1739729709029,0.03448103,189.75,189.73,6.93229257]
[1739729710429,0.03448103,189.75,189.71,0.03784705]
[1739729710629,1.64608103,189.75,189.71,0.03784705]
[1739729710830,6.93229257,189.74,189.67,6.93229257]
[1739729711026,6.93229257,189.72,189.67,6.93229257]
[1739729711433,5.2712,189.68,189.65,6.93229257]
[1739729711629,3.154,189.71,189.65,6.93229257]
[1739729712134,6.97163399,189.7,189.66,0.03840987]
[1739729712334,3.154,189.71,189.61,6.93229257]
[1739729712335,6.93229257,189.68,189.61,6.93229257]
[1739729712726,5.2725,189.64,189.61,6.93229257]
[1739729713433,5.31160569,189.64,189.61,6.97055506]
[1739729713634,0.03910569,189.64,189.61,6.97055506]
[1739729715133,5.2726,189.63,189.61,6.97055506]
[1739729715336,0.03910569,189.64,189.61,6.97055506]
[1739729717230,6.97139826,189.64,189.61,0.03826249]
[1739729717735,5.2729,189.62,189.61,0.03826249]
[1739729719037,6.93229257,189.62,189.55,6.93229257]
[1739729719636,5.2739,189.59,189.55,6.93229257]
[1739729719832,6.93229257,189.62,189.55,6.93229257]
[1739729720032,5.2743,189.57,189.55,6.93229257]
[1739729720439,0.03477791,189.6,189.55,6.93229257]